fUST/lending_fUST_20240312
["ID","MTS","AMOUNT","RATE_DAILY","PERIOD"]
[318434261,1710225116831,-160.32032571,0.00015499,2]
[318434262,1710225116859,-4988.6770457,0.00015499,2]
[318434263,1710225116889,-28166.83841746,0.000155,2]
[318434264,1710225120952,4988.6770457,0.00015344,2]
[318434268,1710225129626,-4229.7,0.000155,2]
[318434269,1710225141197,160.32032571,0.00015499,2]
[318434270,1710225147163,-201.00909492,0.00015499,2]
[318434271,1710225147199,-221.96090508,0.000155,2]
[318434272,1710225531161,163.92989,0.00014499,2]
[318434273,1710225598692,1447.362866,0.00015022,2]
[318434274,1710225599018,302.79066386,0.0001521,2]
[318434354,1710226231844,-163.92989,0.00014495,2]
[318434356,1710226231853,-158.89939542,0.00015021,2]
[318434498,1710226237919,-2440.20134539,0.00015021,2]
[318434499,1710226237929,-2229.48803007,0.00015022,2]
[318434500,1710226237941,-115.65420193,0.00015022,2]
[318434501,1710226237951,-1144.57220214,0.0001521,2]
[318434502,1710226237960,-2345.142232,0.0001521,2]
[318434503,1710226237971,-108.20372566,0.00015398,2]
[318434559,1710226243562,-165.01033327,0.00015398,2]
[318434560,1710226243574,-1174.14880707,0.00015398,2]
[318434561,1710226243583,-2345.142232,0.00015398,2]
[318434563,1710226243593,-500.0,0.00015499,2]
[318434565,1710226243603,-500.0,0.00015499,2]
[318434567,1710226243612,-500.0,0.00015499,2]
[318434569,1710226243621,-500.0,0.00015499,2]
[318434570,1710226243631,-500.0,0.00015499,2]
[318434572,1710226243641,-500.0,0.00015499,2]
[318434574,1710226243650,-210.97450618,0.00015499,2]
[318434577,1710226243660,-8175.89556863,0.00015499,2]
[318434578,1710226243669,-500.0,0.00015499,2]
[318434579,1710226243678,-500.0,0.00015499,2]
[318434580,1710226243689,-500.0,0.00015499,2]
[318434581,1710226243698,-469.00513065,0.00015499,2]
[318434582,1710226243707,-24997.42563884,0.000155,2]
[318434583,1710226243719,-10814.33723705,0.000155,2]
[318434593,1710226245965,-1932.42451442,0.000155,2]
[318434601,1710226467997,155.0,0.00018,30]
[318434812,1710227434369,-2599.10074081,0.00012499,2]
[318434814,1710227434379,-3397.43960368,0.000125,2]
[318434816,1710227434388,-3851.945488,0.0001445,2]
[318434818,1710227434398,-234.829761,0.00015022,2]
[318434820,1710227434407,-469.028446,0.00015022,2]
[318434822,1710227434417,-234.829761,0.0001521,2]
[318434824,1710227434426,-469.028446,0.0001521,2]
[318434826,1710227434435,-234.829761,0.00015398,2]
[318434828,1710227434444,-469.028446,0.00015398,2]
[318434830,1710227434453,-3943.83582348,0.00015497,2]
[318434831,1710227434463,-262.48262514,0.00015498,7]
[318434833,1710227434472,-160.37161933,0.00015498,2]
[318434835,1710227434482,-331.25647707,0.00015498,2]
[318434837,1710227434491,-428.85168966,0.00015499,5]
[318434839,1710227434501,-155.39994215,0.00015499,2]
[318434841,1710227434510,-8175.89556863,0.00015499,2]
[318434843,1710227434520,-500.0,0.00015499,2]
[318434845,1710227434529,-500.0,0.00015499,2]
[318434847,1710227434539,-500.0,0.00015499,2]
[318434849,1710227434551,-500.0,0.00015499,2]
[318434851,1710227434561,-598.64592509,0.00015499,2]
[318434853,1710227434570,-500.96098414,0.00015499,2]
[318434855,1710227434581,-500.0,0.00015499,2]
[318434857,1710227434591,-500.0,0.00015499,2]
[318434859,1710227434600,-500.0,0.00015499,2]
[318434861,1710227434611,-500.0,0.00015499,2]
[318434863,1710227434621,-500.0,0.00015499,2]
[318434865,1710227434631,-500.0,0.00015499,2]
[318434867,1710227434642,-500.0,0.00015499,2]
[318434870,1710227434652,-500.0,0.00015499,2]
[318434872,1710227434662,-0.61292959,0.00015499,2]
[318434874,1710227434676,-499.38707041,0.00015499,2]
[318434876,1710227434686,-503.97541822,0.00015499,2]
[318434878,1710227434696,-233.91502,0.00015499,2]
[318434880,1710227434706,-500.0,0.00015499,2]
[318434882,1710227434715,-500.0,0.00015499,2]
[318434883,1710227434725,-500.0,0.00015499,2]
[318434885,1710227434734,-500.0,0.00015499,2]
[318434887,1710227434744,-500.0,0.00015499,2]
[318434889,1710227434753,-500.0,0.00015499,2]
[318434891,1710227434763,-210.97450618,0.00015499,2]
[318434893,1710227434773,-500.0,0.00015499,2]
[318434895,1710227434782,-500.0,0.00015499,2]
[318434897,1710227434792,-237.2,0.00015499,2]
[318434899,1710227434805,-500.0,0.00015499,2]
[318434901,1710227434814,-469.00513065,0.00015499,2]
[318434903,1710227434823,-62616.84285454,0.000155,2]
[318435486,1710227441435,-6168.99278573,0.000155,2]
[318435490,1710227441493,-7058.52578215,0.000155,2]
[318435491,1710227441506,-312.65381168,0.000155,2]
[318435614,1710227443172,-6767.07051955,0.000155,2]
[318435616,1710227443184,-559.00761849,0.000155,2]
[318435619,1710227443201,-2320.22497353,0.000155,2]
[318435621,1710227443212,-3929.57453203,0.000155,2]
[318435983,1710227446687,-229916.20109831,0.000155,2]
[318436251,1710228250732,-159.532698,0.00015022,2]
[318436252,1710228250752,-2599.10074081,0.00015225,2]
[318436253,1710228250772,-1006.47229607,0.00015226,2]
[318436254,1710228250794,-170.36932604,0.00015345,2]
[318436255,1710228250815,-4657.17340727,0.000154,2]
[318436256,1710228250835,-735.55404502,0.000154,2]
[318436257,1710228250856,-796.72942084,0.000154,2]
[318436258,1710228250876,-1000.0,0.00015429,2]
[318436259,1710228250896,-679.91697722,0.00015445,2]
[318436260,1710228250916,-1745.72197394,0.00015483,2]
[318436261,1710228250935,-310.30409815,0.00015498,2]
[318436262,1710228250955,-160.37161933,0.00015498,2]
[318436263,1710228250976,-909.40931501,0.00015498,2]
[318436264,1710228250997,-15140.1467823,0.00015498,2]
[318436466,1710228633204,-2599.10074081,0.00015244,2]
[318436468,1710228633214,-2599.10074081,0.00015245,2]
[318436470,1710228633223,-2157.04312356,0.000154,2]
[318436472,1710228633235,-155.49792318,0.00015483,2]
[318436474,1710228633245,-120.76843643,0.00015498,2]
[318436476,1710228633254,-500.0,0.00015498,2]
[318436478,1710228633265,-15955.09649815,0.00015498,2]
[318436480,1710228633274,-2072.05893773,0.00015498,2]
[318436482,1710228633283,-500.0,0.00015498,2]
[318436484,1710228633293,-500.0,0.00015498,2]
[318436486,1710228633302,-500.23201122,0.00015498,2]
[318436488,1710228633312,-155.46347396,0.00015498,2]
[318436490,1710228633322,-155.29808687,0.00015498,2]
[318436492,1710228633332,-286.36998653,0.00015498,2]
[318436494,1710228633342,-323.02859058,0.00015498,2]
[318436496,1710228633351,-500.0,0.00015498,2]
[318436498,1710228633360,-500.0,0.00015498,2]
[318436500,1710228633369,-19027.6304326,0.00015498,2]
[318436502,1710228633379,-500.0,0.00015498,2]
[318436504,1710228633388,-500.0,0.00015498,2]
[318436506,1710228633398,-500.0,0.00015498,2]
[318436508,1710228633407,-500.0,0.00015498,2]
[318436510,1710228633416,-500.0,0.00015499,2]
[318436512,1710228633425,-370.60315278,0.00015499,2]
[318436514,1710228633434,-500.0,0.00015499,2]
[318436516,1710228633443,-500.0,0.00015499,2]
[318436518,1710228633452,-500.0,0.00015499,2]
[318436519,1710228633461,-500.0,0.00015499,2]
[318436521,1710228633470,-500.0,0.00015499,2]
[318436523,1710228633479,-535.86936706,0.00015499,2]
[318436525,1710228633488,-500.0,0.00015499,2]
[318436527,1710228633497,-500.0,0.00015499,2]
[318436528,1710228633507,-500.0,0.00015499,2]
[318436530,1710228633516,-500.0,0.00015499,2]
[318436532,1710228633525,-500.0,0.00015499,2]
[318436534,1710228633534,-500.0,0.00015499,2]
[318436536,1710228633543,-500.0,0.00015499,2]
[318436538,1710228633553,-500.0,0.00015499,2]
[318436540,1710228633561,-500.0,0.00015499,2]
[318436542,1710228633570,-500.0,0.00015499,2]
[318436544,1710228633580,-500.0,0.00015499,2]
[318436546,1710228633590,-500.0,0.00015499,2]
[318436548,1710228633600,-500.0,0.00015499,2]
[318436550,1710228633609,-500.0,0.00015499,2]
[318436552,1710228633618,-500.0,0.00015499,2]
[318436554,1710228633627,-500.0,0.00015499,2]
[318436556,1710228633636,-535.27310214,0.00015499,2]
[318436558,1710228633645,-299.60005286,0.00015499,2]
[318436560,1710228633654,-500.0,0.00015499,2]
[318436562,1710228633663,-500.0,0.00015499,2]
[318436564,1710228633672,-500.0,0.00015499,2]
[318436565,1710228633681,-286.35031191,0.00015499,2]
[318436567,1710228633690,-500.0,0.00015499,2]
[318436569,1710228633699,-500.0,0.00015499,2]
[318436571,1710228633708,-502.05768569,0.00015499,2]
[318436573,1710228633716,-500.0,0.00015499,2]
[318436575,1710228633726,-500.0,0.00015499,2]
[318436577,1710228633735,-460.7055238,0.00015499,2]
[318436579,1710228633744,-500.0,0.00015499,2]
[318436581,1710228633754,-500.0,0.00015499,2]
[318436583,1710228633763,-500.0,0.00015499,2]
[318436585,1710228633772,-500.0,0.00015499,2]
[318436587,1710228633781,-609.48862041,0.00015499,2]
[318436589,1710228633790,-500.0,0.00015499,2]
[318436591,1710228633799,-500.0,0.00015499,2]
[318436593,1710228633809,-500.0,0.00015499,2]
[318436595,1710228633817,-500.0,0.00015499,2]
[318436597,1710228633828,-500.0,0.00015499,2]
[318436599,1710228633839,-500.0,0.00015499,2]
[318436601,1710228633849,-500.0,0.00015499,2]
[318436603,1710228633858,-500.0,0.00015499,2]
[318436605,1710228633868,-500.0,0.00015499,2]
[318436607,1710228633877,-500.0,0.00015499,2]
[318436609,1710228633886,-500.0,0.00015499,2]
[318436611,1710228633895,-500.0,0.00015499,2]
[318436613,1710228633904,-500.0,0.00015499,2]
[318436615,1710228633914,-500.0,0.00015499,2]
[318436617,1710228633923,-500.0,0.00015499,2]
[318436619,1710228633933,-500.0,0.00015499,2]
[318436621,1710228633942,-514.56,0.00015499,2]
[318436623,1710228633951,-500.0,0.00015499,2]
[318436625,1710228633961,-500.0,0.00015499,2]
[318436627,1710228633970,-500.0,0.00015499,2]
[318436629,1710228633980,-219.38324519,0.00015499,2]
[318436631,1710228633989,-500.0,0.00015499,2]
[318436633,1710228633998,-500.0,0.00015499,2]
[318436634,1710228634009,-500.0,0.00015499,2]
[318436637,1710228634019,-500.0,0.00015499,2]
[318436638,1710228634028,-333.31405425,0.00015499,2]
[318436640,1710228634037,-500.0,0.00015499,2]
[318436642,1710228634047,-500.0,0.00015499,2]
[318436644,1710228634056,-500.0,0.00015499,2]
[318436646,1710228634066,-505.92618254,0.00015499,2]
[318436648,1710228634075,-500.0,0.00015499,2]
[318436650,1710228634086,-500.0,0.00015499,2]
[318436652,1710228634095,-500.0,0.00015499,2]
[318436654,1710228634104,-500.0,0.00015499,2]
[318436656,1710228634114,-500.0,0.00015499,2]
[318436658,1710228634123,-500.0,0.00015499,2]
[318436660,1710228634132,-500.0,0.00015499,2]
[318436662,1710228634141,-525.77543339,0.00015499,2]
[318436664,1710228634151,-500.0,0.00015499,2]
[318436666,1710228634160,-295.07436211,0.00015499,2]
[318436668,1710228634169,-500.0,0.00015499,2]
[318436670,1710228634179,-512.40705756,0.00015499,2]
[318436672,1710228634187,-237.18044026,0.00015499,2]
[318436674,1710228634201,-262.81955974,0.00015499,2]
[318436675,1710228634211,-500.0,0.00015499,2]
[318436676,1710228634222,-500.0,0.00015499,2]
[318436677,1710228634232,-460.64979773,0.00015499,2]
[318436678,1710228634243,-500.0,0.00015499,2]
[318436679,1710228634253,-500.0,0.00015499,2]
[318436680,1710228634272,-500.0,0.00015499,2]
[318436681,1710228634296,-502.64118881,0.00015499,2]
[318436682,1710228634318,-500.0,0.00015499,2]
[318436683,1710228634339,-500.0,0.00015499,2]
[318436684,1710228634371,-500.0,0.00015499,2]
[318436685,1710228634400,-500.0,0.00015499,2]
[318436687,1710228634420,-500.0,0.00015499,2]
[318436688,1710228634429,-500.0,0.00015499,2]
[318436690,1710228634438,-500.0,0.00015499,2]
[318436692,1710228634450,-339.4252656,0.00015499,2]
[318436694,1710228634459,-500.0,0.00015499,2]
[318436696,1710228634468,-500.0,0.00015499,2]
[318436698,1710228634477,-500.0,0.00015499,2]
[318436700,1710228634486,-178.7550617,0.00015499,2]
[318436702,1710228634495,-500.0,0.00015499,2]
[318436704,1710228634504,-500.0,0.00015499,2]
[318436706,1710228634513,-500.0,0.00015499,2]
[318436707,1710228634522,-500.0,0.00015499,2]
[318436709,1710228634531,-593.32345327,0.00015499,2]
[318436711,1710228634540,-500.0,0.00015499,2]
[318436713,1710228634549,-500.0,0.00015499,2]
[318436715,1710228634558,-500.0,0.00015499,2]
[318436717,1710228634567,-500.0,0.00015499,2]
[318436719,1710228634576,-500.0,0.00015499,2]
[318436721,1710228634587,-116745.64774742,0.000155,2]
[318436724,1710228634599,-8125.81050583,0.000155,2]
[318436919,1710228638302,-770.15551867,0.00015344,2]
[318436922,1710228638434,-12.57597787,0.00015344,2]
[318436958,1710228641522,-717.26850346,0.00015344,2]
[318436959,1710228641533,-18115.34769265,0.000155,2]
[318436960,1710228641546,-2388.80527555,0.000155,2]
[318437091,1710228643428,-251745.33186731,0.000155,2]
[318437092,1710228643441,-53149.75291787,0.000155,2]
[318437095,1710228643453,-1582.71169673,0.000155,2]
[318437096,1710228643465,-3674.97081703,0.000155,2]
[318437097,1710228643477,-85721.92338117,0.000155,2]
[318437098,1710228643489,-94416.187763,0.000155,2]
[318437099,1710228643501,-347.84064169,0.000155,2]
[318437100,1710228643513,-6417.20058148,0.000155,2]
[318437101,1710228643525,-7463.59877889,0.000155,2]
[318437154,1710228646434,-474.17740683,0.00015345,2]
[318437322,1710229708576,10000.0,0.00025,99]
[318437323,1710229736659,1000.0,0.00024,120]
[318437324,1710229736684,1000.0,0.00024,120]
[318437325,1710229736710,999.0,0.00024,120]
[318437326,1710229736738,5000.0,0.00024,120]
[318437327,1710229736774,2001.0,0.00024,120]
[318437328,1710229756633,10000.0,0.00023,99]
[318437329,1710229770536,10000.0,0.00022,120]
[318437335,1710229799319,10000.0,0.00021,90]
[318437360,1710229832485,-199.21849,0.00014007,2]
[318437362,1710229832495,-199.21849,0.00014372,2]
[318437364,1710229832504,-1888.48928723,0.00015339,2]
[318437366,1710229832516,-710.61145358,0.00015339,2]
[318437367,1710229832524,-157.06003188,0.0001534,2]
[318437369,1710229832534,-155.29589981,0.00015343,2]
[318437370,1710229832544,-333.05362582,0.00015345,2]
[318437371,1710229832557,-353.99228805,0.00015345,2]
[318437372,1710229832569,-171.47817684,0.00015345,2]
[318437373,1710229832581,-483.51040805,0.00015399,2]
[318437477,1710229840446,-16.48959195,0.00015399,2]
[318437478,1710229840455,-2467.09907492,0.000154,2]
[318437479,1710229840467,-565.22309176,0.000154,2]
[318437480,1710229840478,-594.29,0.000154,2]
[318437520,1710229846520,-11868.8236,0.00015246,2]
[318437521,1710229846581,-1050.34548557,0.00015246,2]
[318437522,1710229846645,-1170.03958904,0.00015246,2]
[318437523,1710229846654,-34892.02007312,0.000154,2]
[318437659,1710231039362,-1784.96130203,0.00014425,2]
[318437667,1710231039434,-814.13943878,0.00014425,2]
[318437668,1710231039444,-331.37218946,0.00014449,2]
[318437669,1710231039454,-199.21849,0.0001445,2]
[318437670,1710231039464,-190.168358,0.00015022,2]
[318437671,1710231039474,-158.579165,0.00015022,2]
[318437672,1710231039484,-500.08250151,0.00015399,2]
[318437673,1710231039493,-152.66736997,0.00015399,2]
[318437675,1710231039506,-319.88118119,0.00015399,2]
[318437715,1710231040641,-27.45144884,0.00015399,2]
[318437716,1710231040651,-469.00513065,0.00015399,2]
[318437717,1710231040661,-2071.35249957,0.000154,2]
[318437718,1710231040676,-5763.58815184,0.000154,2]
[318437740,1710231044138,-6779.99999999,0.000154,2]
[318437741,1710231044150,-21863.66310286,0.000154,2]
[318437742,1710231044161,-287.25960049,0.000154,2]
[318437743,1710231044173,-624.8377473,0.00015406,2]
[318437744,1710231044183,-175.23526894,0.00015497,2]
[318437745,1710231044192,-501.86722851,0.00015497,2]
[318437746,1710231044202,-500.0,0.00015497,2]
[318437748,1710231044212,-503.36248863,0.00015497,2]
[318437750,1710231044222,-233.91502,0.00015497,2]
[318437751,1710231044230,-500.0,0.00015497,2]
[318437752,1710231044240,-500.0,0.00015497,2]
[318437753,1710231044249,-284.56231173,0.00015497,2]
[318437911,1710232233977,-212.12126449,0.00014325,2]
[318437912,1710232233987,-155.18933098,0.00014326,2]
[318437913,1710232233997,-331.37218946,0.00014327,2]
[318437915,1710232234006,-2599.10074081,0.00014327,2]
[318437917,1710232234016,-20514.81813708,0.0001433,2]
[318437919,1710232234026,-1672.72758336,0.00014331,2]
[318437921,1710232234036,-163.9298911,0.0001434,2]
[318437923,1710232234046,-383.032772,0.00015065,2]
[318437925,1710232234055,-383.032772,0.00015253,2]
[318437927,1710232234065,-619.88624172,0.00015399,2]
[318437929,1710232234075,-500.0,0.00015399,2]
[318437930,1710232234084,-47269.02852018,0.000154,2]
[318437931,1710232234093,-383.032772,0.00015441,2]
[318437932,1710232234102,-500.0,0.00015496,2]
[318437933,1710232234113,-2072.05893773,0.00015497,2]
[318437934,1710232234123,-623.57692567,0.00015497,2]
[318437935,1710232234132,-180.18994137,0.00015497,2]
[318437936,1710232234141,-500.0,0.00015497,2]
[318437937,1710232234150,-161.90613371,0.00015497,2]
[318437938,1710232234160,-215.43768827,0.00015497,2]
[318437939,1710232234170,-154.41240014,0.00015497,2]
[318437940,1710232234179,-155.19399249,0.00015497,2]
[318437941,1710232234188,-216.18439808,0.00015497,2]
[318437942,1710232234197,-565.49772184,0.00015497,2]
[318437943,1710232234207,-155.14428418,0.00015497,2]
[318437944,1710232234216,-500.0,0.00015497,2]
[318437945,1710232234226,-500.0,0.00015497,2]
[318437946,1710232234235,-500.0,0.00015497,2]
[318437947,1710232234245,-500.0,0.00015497,2]
[318437948,1710232234254,-500.0,0.00015497,2]
[318437949,1710232234263,-574.73603894,0.00015497,2]
[318437950,1710232234273,-2475.29,0.00015497,2]
[318437951,1710232234282,-2475.29,0.00015497,2]
[318437952,1710232234291,-500.0,0.00015497,2]
[318437953,1710232234300,-500.0,0.00015497,2]
[318437954,1710232234309,-500.0,0.00015497,2]
[318437955,1710232234320,-500.0,0.00015497,2]
[318437956,1710232234329,-500.0,0.00015497,2]
[318437957,1710232234338,-500.0,0.00015497,2]
[318437958,1710232234348,-500.0,0.00015497,2]
[318437959,1710232234363,-237.2,0.00015497,2]
[318437960,1710232234372,-8723.82601439,0.00015498,2]
[318437961,1710232234382,-160.37161933,0.00015498,2]
[318437962,1710232234394,-1500.28405,0.00015498,2]
[318437963,1710232234404,-155.4988569,0.00015498,2]
[318437964,1710232234413,-1951.55607231,0.00015498,2]
[318437965,1710232234423,-524.47552081,0.00015498,2]
[318437966,1710232234434,-596.19717157,0.00015498,2]
[318437967,1710232234443,-326.64058595,0.00015498,2]
[318437968,1710232234453,-155.24967747,0.00015498,2]
[318437969,1710232234462,-15258.05486311,0.00015498,2]
[318437970,1710232234471,-528.65561539,0.00015498,2]
[318437971,1710232234480,-191.54405702,0.00015498,2]
[318437972,1710232234490,-258.84527636,0.00015498,2]
[318437973,1710232234500,-155.18759724,0.00015498,2]
[318437974,1710232234509,-310.20941483,0.00015498,2]
[318437975,1710232234519,-288.18575367,0.00015498,2]
[318437976,1710232234529,-398.38740165,0.00015498,2]
[318437977,1710232234538,-1273.64188254,0.00015498,2]
[318437978,1710232234548,-241.01774848,0.00015498,2]
[318437979,1710232234557,-3183.56034299,0.00015498,2]
[318437980,1710232234568,-155.49110306,0.00015498,2]
[318437981,1710232234577,-302.98919803,0.00015498,2]
[318437982,1710232234587,-517.34980492,0.00015498,2]
[318437983,1710232234597,-612.23992096,0.00015498,2]
[318437984,1710232234607,-2475.29,0.00015498,2]
[318437985,1710232234623,-2475.29,0.00015498,2]
[318437986,1710232234633,-500.0,0.00015498,2]
[318437987,1710232234643,-500.0,0.00015498,2]
[318437988,1710232234653,-500.0,0.00015498,2]
[318437989,1710232234662,-500.0,0.00015498,2]
[318437990,1710232234672,-185.74941677,0.00015498,2]
[318437991,1710232234682,-3500.01988252,0.00015499,2]
[318437992,1710232234692,-23918.98431806,0.00015499,2]
[318438014,1710232237990,-4924.64637278,0.00015499,2]
[318438015,1710232238004,-2706.25390722,0.00015499,2]
[318438016,1710232238018,-1837.90229123,0.00015499,2]
[318438017,1710232238032,-1782.06817605,0.00015499,2]
[318438058,1710232243180,-473.72909415,0.00015499,2]
[318438060,1710232243191,-2233.06815641,0.00015499,2]
[318438062,1710232243202,-40827.41130389,0.00015499,2]
[318438084,1710232244084,-1039.53501692,0.00015499,2]
[318438085,1710232244096,-329.7518327,0.00015499,2]
[318438086,1710232244108,-11792.80997043,0.00015499,2]
[318438087,1710232244122,-6497.47835648,0.00015499,2]
[318438088,1710232244132,-3150.0,0.00015499,2]
[318438089,1710232244143,-9611.00000341,0.00015499,2]
[318438090,1710232244154,-1894.49568397,0.00015499,2]
[318438091,1710232244166,-2125.1991472,0.00015499,2]
[318438092,1710232244177,-764.76670726,0.00015499,2]
[318438093,1710232244188,-3927.78601698,0.00015499,2]
[318438094,1710232244199,-310200.71081411,0.00015499,2]
[318438095,1710232244212,-4959.97688879,0.00015499,2]
[318438096,1710232244223,-14432.84908546,0.00015499,2]
[318438097,1710232244234,-17283.6974915,0.00015499,2]
[318438098,1710232244243,-2475.29,0.00015499,2]
[318438099,1710232244252,-2475.29,0.00015499,2]
[318438100,1710232244261,-2475.29,0.00015499,2]
[318438101,1710232244270,-2475.29,0.00015499,2]
[318438102,1710232244280,-2475.29,0.00015499,2]
[318438103,1710232244292,-2475.29,0.00015499,2]
[318438104,1710232244301,-2475.29,0.00015499,2]
[318438105,1710232244310,-2475.29,0.00015499,2]
[318438106,1710232244322,-2475.29,0.00015499,2]
[318438107,1710232244332,-2475.29,0.00015499,2]
[318438108,1710232244341,-2475.29,0.00015499,2]
[318438109,1710232244350,-2475.29,0.00015499,2]
[318438110,1710232244363,-2475.29,0.00015499,2]
[318438111,1710232244375,-2475.29,0.00015499,2]
[318438112,1710232244384,-2475.29,0.00015499,2]
[318438113,1710232244394,-2475.29,0.00015499,2]
[318438114,1710232244403,-2475.29,0.00015499,2]
[318438115,1710232244413,-2475.29,0.00015499,2]
[318438116,1710232244422,-2475.29,0.00015499,2]
[318438117,1710232244433,-2475.29800001,0.00015499,2]
[318438118,1710232244442,-210.97450618,0.00015499,2]
[318438119,1710232244454,-500.0,0.00015499,2]
[318438120,1710232244463,-500.0,0.00015499,2]
[318438121,1710232244472,-500.0,0.00015499,2]
[318438122,1710232244482,-500.0,0.00015499,2]
[318438123,1710232244492,-500.0,0.00015499,2]
[318438124,1710232244501,-500.0,0.00015499,2]
[318438125,1710232244510,-500.0,0.00015499,2]
[318438126,1710232244519,-500.0,0.00015499,2]
[318438127,1710232244529,-500.0,0.00015499,2]
[318438128,1710232244539,-503.82248165,0.00015499,2]
[318438129,1710232244547,-9555.68089715,0.000155,2]
[318438130,1710232244559,-11778.79198634,0.000155,2]
[318438131,1710232244571,-5805.54528821,0.000155,2]
[318438211,1710232245973,-200106.02456994,0.000155,2]
[318438212,1710232245992,-17907.14145121,0.000155,2]
[318438213,1710232294059,650.0284871,0.0002,30]
[318438251,1710233433157,-2599.10074081,0.00014117,2]
[318438253,1710233433167,-2599.10074081,0.00014118,2]
[318438255,1710233433176,-1017.9514912,0.00014406,2]
[318438257,1710233433185,-754.13101,0.00015225,2]
[318438259,1710233433194,-1000.0,0.00015266,2]
[318438262,1710233433203,-1000.0,0.00015267,2]
[318438265,1710233433212,-1000.0,0.00015298,2]
[318438268,1710233433221,-620.33398229,0.00015367,2]
[318438271,1710233433231,-300.0,0.00015368,2]
[318438274,1710233433240,-492.55807834,0.00015399,2]
[318438276,1710233433250,-300.0,0.00015449,2]
[318438278,1710233433258,-434.62275958,0.0001545,2]
[318438407,1710233438041,-565.37724042,0.0001545,2]
[318438408,1710233438051,-201.29977643,0.00015451,2]
[318438410,1710233438060,-544.55388214,0.00015451,2]
[318438412,1710233438070,-37.60463303,0.00015452,2]
[318438416,1710233438103,-962.39536697,0.00015452,2]
[318438417,1710233438115,-27.18983542,0.00015497,2]
[318438418,1710233438127,-788.50774064,0.00015497,2]
[318438419,1710233438136,-504.54762686,0.00015497,2]
[318438420,1710233438146,-198.73160627,0.00015498,2]
[318438421,1710233438155,-309.69464288,0.00015498,2]
[318438422,1710233438166,-160.32032571,0.00015498,2]
[318438423,1710233438175,-1000.0,0.00015498,2]
[318438424,1710233438185,-364.94898624,0.00015499,2]
[318438425,1710233438194,-4134.20461848,0.00015499,2]
[318438426,1710233438203,-273.46343764,0.00015499,2]
[318438427,1710233438213,-500.0,0.00015499,2]
[318438428,1710233438222,-500.0,0.00015499,2]
[318438429,1710233438231,-508.87178618,0.00015499,2]
[318438430,1710233438241,-480.98909619,0.00015499,2]
[318438431,1710233438250,-500.0,0.00015499,2]
[318438432,1710233438259,-500.0,0.00015499,2]
[318438433,1710233438268,-500.0,0.00015499,2]
[318438434,1710233438277,-500.0,0.00015499,2]
[318438435,1710233438286,-275.72013291,0.00015499,2]
[318438436,1710233438298,-224.27986709,0.00015499,2]
[318438437,1710233438308,-500.0,0.00015499,2]
[318438438,1710233438318,-500.0,0.00015499,2]
[318438439,1710233438327,-500.0,0.00015499,2]
[318438440,1710233438337,-500.0,0.00015499,2]
[318438441,1710233438346,-500.0,0.00015499,2]
[318438442,1710233438358,-500.0,0.00015499,2]
[318438443,1710233438367,-500.0,0.00015499,2]
[318438444,1710233438376,-500.0,0.00015499,2]
[318438445,1710233438386,-73.46013291,0.00015499,2]
[318438463,1710233441923,-565.37724042,0.00015295,2]
[318438465,1710233441932,-426.53986709,0.00015499,2]
[318438466,1710233441942,-500.0,0.00015499,2]
[318438468,1710233441951,-523.51296449,0.00015499,2]
[318438498,1710233443150,-60.06703551,0.00015499,2]
[318438499,1710233443159,-205.913,0.000155,2]
[318438500,1710233443168,-401730.48943892,0.000155,2]
[318438501,1710233443182,-22582.47139884,0.000155,2]
[318438510,1710233446221,-327.70101,0.000155,2]
[318438511,1710233446235,-1902.15533238,0.000155,2]